Organisation Name,Organisation Code,Directorate/Service,Service Category Label,Service Code,Supplier Name,Supplier Reference,Payment Date,Transaction Number,Net Payment,Purpose of Spend
North West Leicestershire District Council,31UH,Finance,Financial Planning,FINPLA,Salford City Council,A042800,30/11/2017,1355178,1000000,Policy Lending
North West Leicestershire District Council,31UH,Legal & Democratic,Legal Services,LDLS,Information Commissioner,A032156,30/11/2017,1355180,500,Subscriptions
North West Leicestershire District Council,31UH,Finance,Financial Planning,FINPLA,Public Works Loan Board,A001340,30/11/2017,1355181,38062.5,Policy Lending
North West Leicestershire District Council,31UH,Finance,Financial Planning,FINPLA,Blackrock Cash Management,A039249,30/11/2017,1355182,5400000,Policy Lending
North West Leicestershire District Council,31UH,Finance,Financial Planning,FINPLA,Scottish Widows Investment Partnerhiip,A039247,30/11/2017,1355183,6300000,Policy Lending
North West Leicestershire District Council,31UH,Finance,Financial Planning,FINPLA,Goldman Sachs Money Market Fund,A039248,30/11/2017,1355184,1700000,Policy Lending
North West Leicestershire District Council,31UH,Finance,Financial Planning,FINPLA,Leicestershire County Council,A000950,30/11/2017,1355187,1832634,Precept
North West Leicestershire District Council,31UH,Finance,Financial Planning,FINPLA,Department for Communities & Local Government,A028518,30/11/2017,1355188,2268114,Subsidy Receipts & Repayments
North West Leicestershire District Council,31UH,Finance,Exchequer Services,EXCH,H M Land Registry,A000713,30/11/2017,1355190,536,Legal & Professional Services
North West Leicestershire District Council,31UH,Street Management,Environment Parks,ENOP,Aggregate Industries Uk Ltd,A000940,06/12/2017,1353792,297.17,External Materials
North West Leicestershire District Council,31UH,Economic Development,Business Focus Group,BFG,Kerching Retail Limited,A038292,06/12/2017,1354192,6565,Consultants Fees
North West Leicestershire District Council,31UH,Street Management,Environment Parks,ENOP,Aggregate Industries Uk Ltd,A000940,06/12/2017,1354255,615.6,Operational Equipment - Purchases
North West Leicestershire District Council,31UH,Chief Exec,Chief Executive,CHEX,Land Use Consultants Ltd,A044090,06/12/2017,1354436,13458,Consultants Fees
North West Leicestershire District Council,31UH,Leisure Centres,Hood Park Leisure Centre,HPLC,Alexandra Plc,A000033,06/12/2017,1354474,388.5,Protective Clothing
North West Leicestershire District Council,31UH,Street Management,Environment Parks,ENOP,Park Hill Training Ltd,A043093,06/12/2017,1354721,252,Training Expenses
North West Leicestershire District Council,31UH,Leisure Centres,Hermitage Leisure Centre,HLC,The Leisure Database Company,A042265,06/12/2017,1354745,1900,Street Sport Programme
North West Leicestershire District Council,31UH,Environmental Health,Environmental Health & Licensing,EEHL,CIEH,A027750,06/12/2017,1354770,1080,Professional Fees
North West Leicestershire District Council,31UH,Street Management,Environment Parks,ENOP,Richard Bailey Plant & Construction Ltd,A041796,06/12/2017,1354772,1244.8,Contract Payments (Other) Ext
North West Leicestershire District Council,31UH,Leisure Centres,Hermitage Leisure Centre,HLC,Alexandra Plc,A000033,06/12/2017,1354805,675.45,Protective Clothing
North West Leicestershire District Council,31UH,Leisure & Culture,Cultural Services Arts & Events,CULTEV,Field and Lawn Ltd,A042594,06/12/2017,1355113,5500,Coalville Christmas Decorations
North West Leicestershire District Council,31UH,Leisure & Culture,Cultural Services Arts & Events,CULTEV,Helter Skelter Arts Ltd,A043059,06/12/2017,1355114,900,Event Expenditure
North West Leicestershire District Council,31UH,Housing Repairs,HRA Housing Repairs & Maintenance,HRAHRM,PPG Architectural Coatings Ltd,A000876,06/12/2017,1355117,2118.66,Internal Decorations
North West Leicestershire District Council,31UH,Housing,HRA Performance & Business Support,HRAPBS,Michael Page International Recruitment Ltd,A041893,06/12/2017,1355118,2017.75,Agency Staff
North West Leicestershire District Council,31UH,Information Technology,ICT Services,ICT,Firmstep,A030931,06/12/2017,1355120,2415,Computing
North West Leicestershire District Council,31UH,Information Technology,ICT Services,ICT,Firmstep,A030931,06/12/2017,1355121,9300,Computing
North West Leicestershire District Council,31UH,Street Management,Environment Transport,ENOT,Ford & Slater Group Ltd,A000625,06/12/2017,1355127,439.88,Vehicle Repairs and Parts
North West Leicestershire District Council,31UH,Corporate Director,Human Resources,HR,Euro RSCG People T/A Havas People Ltd,A001395,06/12/2017,1355128,9950,Computing
North West Leicestershire District Council,31UH,Housing Repairs,HRA Housing Repairs & Maintenance,HRAHRM,BSP Consulting,A043552,06/12/2017,1355130,1270,Legal & Professional Services
North West Leicestershire District Council,31UH,Planning & Development,Environment Planning Policy,EPP,Infrastructure & Environment UK Ltd,A041786,06/12/2017,1355131,886,Professional Fees
North West Leicestershire District Council,31UH,Planning & Development,Environment Community Planning,ECP,Locality,A044416,06/12/2017,1355132,537.6,Training Course
North West Leicestershire District Council,31UH,Housing,HRA Housing Management,HRAHM,Leicestershire County Council,A000950,06/12/2017,1355137,8739.69,Contract Cleaning
North West Leicestershire District Council,31UH,Street Management,Environment General Technician,ENOGT,Western Power Distribution,A038499,06/12/2017,1355138,1413.71,Utilities- repairs
North West Leicestershire District Council,31UH,Street Management,Environment - Street Scene,ESS,Metric Group Ltd (Sales),A028996,06/12/2017,1355139,60050,Contract Payments (Other) Ext
North West Leicestershire District Council,31UH,Finance,Exchequer Services,EXCH,Comensura Limited,A036958,06/12/2017,1355140,31124.05,Agency Staff
North West Leicestershire District Council,31UH,Planning & Development,Environment - Development Control,EDC,Euro RSCG People T/A Havas People Ltd,A001395,06/12/2017,1355141,534.04,Advertising
North West Leicestershire District Council,31UH,Housing,HRA Housing Management,HRAHM,Redacted-Personal data,A044470,06/12/2017,1355142,500,Under Occupancy Incentives
North West Leicestershire District Council,31UH,Housing,HRA Housing Management,HRAHM,Redacted-Personal data,A043226,06/12/2017,1355147,792.28,Compensation
North West Leicestershire District Council,31UH,Leisure & Culture,Sport & Physical Activity,SPA,Worth-it Projects (social enterprise),A040478,06/12/2017,1355148,3250,Local Sports Alliance
North West Leicestershire District Council,31UH,Information Technology,ICT Services,ICT,Canon UK Ltd,A040459,06/12/2017,1355154,423.34,Photo Copier - Copy Charges Rental
North West Leicestershire District Council,31UH,Information Technology,ICT Services,ICT,Canon UK Ltd,A040459,06/12/2017,1355155,481.05,Equipment Operating Leases
North West Leicestershire District Council,31UH,Economic Development,Business Focus Group,BFG,Quiet Storm Solutions Limited,A016412,06/12/2017,1355156,395,Publicity & Promotion
North West Leicestershire District Council,31UH,Leisure Centres,Hermitage Bar & Catering,HLBC,Snackline Direct Ltd,A042489,06/12/2017,1355161,320.04,Catering Provisions
North West Leicestershire District Council,31UH,Leisure Centres,Hermitage Leisure Centre,HLC,J P Lennard Ltd,A000969,06/12/2017,1355168,435.75,Operational Equipment
North West Leicestershire District Council,31UH,Information Technology,ICT Services,ICT,Canon UK Ltd,A040459,06/12/2017,1355177,2999.55,Photo Copier - Copy Charges Rental
North West Leicestershire District Council,31UH,Leisure & Culture,Sport & Physical Activity,SPA,Chameleon Pro Audio T/A Lux Technical Ltd,A027592,06/12/2017,1355191,2500,Event Expenditure
North West Leicestershire District Council,31UH,Street Management,Environment Transport,ENOT,PB Auto Electrics,A041120,06/12/2017,1355192,301.26,Non Scheduled Maintenance - Parts
North West Leicestershire District Council,31UH,Legal & Democratic,Legal Services,LDLS,Bevan Brittan,A031366,06/12/2017,1355194,1610.5,Legal & Professional Services
North West Leicestershire District Council,31UH,Street Management,Environment Parks,ENOP,New Build Landscaping & Home,A043278,06/12/2017,1355196,900,External Contractor Payments
North West Leicestershire District Council,31UH,Street Management,Environment Parks,ENOP,New Build Landscaping & Home,A043278,06/12/2017,1355197,1100,External Contractor Payments
North West Leicestershire District Council,31UH,Street Management,Environment - Street Scene,ESS,Coalville Signs,A000370,06/12/2017,1355199,2280,Electronic Signage
North West Leicestershire District Council,31UH,Street Management,Environment - Street Scene,ESS,Metric Group Ltd (Sales),A028996,06/12/2017,1355200,252,Subscriptions
North West Leicestershire District Council,31UH,Finance,Financial Planning,FINPLA,Hinckley & Bosworth Borough Council,A000770,06/12/2017,1355201,224331.76,Shared Revs & Bens Partnership costs
North West Leicestershire District Council,31UH,Finance,Financial Planning,FINPLA,Hinckley & Bosworth Borough Council,A000770,06/12/2017,1355202,17190,Shared Revs & Bens Partnership costs
North West Leicestershire District Council,31UH,Street Management,Environment - Street Scene,ESS,SLH Planning Solutions Limited,A044102,06/12/2017,1355208,3088.35,Consultants Fees
North West Leicestershire District Council,31UH,Street Management,Environment Parks,ENOP,Breedon Aggregates England Ltd,A000214,06/12/2017,1355214,450,Contract Payments (Other) Ext
North West Leicestershire District Council,31UH,Leisure Centres,Hermitage Bar & Catering,HLBC,Siemens Financial Services Ltd,A029510,06/12/2017,1355216,617.76,Equipment Operating Leases
North West Leicestershire District Council,31UH,Planning & Development,Environment - Development Control,EDC,Crusader Limited (T/A Three Fives Media),A028435,06/12/2017,1355233,304,Office Expenses
North West Leicestershire District Council,31UH,Street Management,Environment Transport,ENOT,Pakawaste Ltd,A032627,06/12/2017,1355234,270.77,Operational Equipment
North West Leicestershire District Council,31UH,Corporate Director,Human Resources,HR,Badgemaster Limited,A032369,06/12/2017,1355235,315.45,Security Badges
North West Leicestershire District Council,31UH,Street Management,Environment Transport,ENOT,Shepshed Auto Spares Ltd,A043917,06/12/2017,1355249,279.99,Transport Costs - Engine Oil
North West Leicestershire District Council,31UH,Street Management,Environment Transport,ENOT,Malvern Tyres,A035175,06/12/2017,1355267,311.6,Vehicle Repairs and Parts
North West Leicestershire District Council,31UH,Street Management,Environment Transport,ENOT,Lee Wells Autobodies Ltd,A031849,06/12/2017,1355269,350,Non Insurance Damage
North West Leicestershire District Council,31UH,Leisure & Culture,Cultural Services Arts & Events,CULTEV,Field and Lawn Ltd,A042594,06/12/2017,1355279,3055.5,Coalville Christmas Decorations
North West Leicestershire District Council,31UH,Street Management,Environment Transport,ENOT,Ford & Slater Group Ltd,A000625,06/12/2017,1355286,798.38,Vehicle Repairs and Parts
North West Leicestershire District Council,31UH,Street Management,Environment Transport,ENOT,Selby's Garage (Woodhouse) Ltd,A044011,06/12/2017,1355287,371.28,Hire Of Operational Equipment
North West Leicestershire District Council,31UH,Housing,HRA Housing Management,HRAHM,Water Plus Limited,A044043,06/12/2017,1355298,2053.55,Water Charges (Metered)
North West Leicestershire District Council,31UH,Property Services,Property Commercial Lettings,PROPCL,Water Plus Limited,A044043,06/12/2017,1355300,1128.27,Water Charges (Metered)
North West Leicestershire District Council,31UH,Finance,Financial Planning,FINPLA,Redacted-Personal data,A044472,06/12/2017,1355301,2000,Insurance related payment
North West Leicestershire District Council,31UH,Environmental Health,Environmental Services,EES,Water Plus Limited,A044043,06/12/2017,1355302,432.45,Water Charges (Metered)
North West Leicestershire District Council,31UH,Street Management,Environment Waste Management,ENOWM,Straight Plc,A024906,06/12/2017,1355304,8960,General Materials
North West Leicestershire District Council,31UH,Housing,HRA Performance & Business Support,HRAPBS,Coalville Yellow Cabs,A041983,06/12/2017,1355305,454.02,Public Transport
North West Leicestershire District Council,31UH,Street Management,Environment Parks,ENOP,Regarde Security Ltd,A013049,06/12/2017,1355307,516.6,Security Services
North West Leicestershire District Council,31UH,Housing,HRA Older Persons Service,HRAOPS,Tunstall Healthcare (UK) Limited,A001701,06/12/2017,1355308,2560,Alarm System Telephones
North West Leicestershire District Council,31UH,Information Technology,ICT Services,ICT,Orange Plc,A018592,06/12/2017,1355313,3511.38,Mobile Telephones
North West Leicestershire District Council,31UH,Street Management,Environment - Street Scene,ESS,Trevor Roberts Associates Ltd,A042339,06/12/2017,1355317,476,Training Course
North West Leicestershire District Council,31UH,Planning & Development,Building Control,EBC,District Surveyors Association Limited - T/A LABC,A003913,06/12/2017,1355319,250,Training Expenses
North West Leicestershire District Council,31UH,Street Management,Environment Transport,ENOT,R Massey & Son (Woodville) Ltd,A033258,06/12/2017,1355384,296.18,Repairs - Parts
North West Leicestershire District Council,31UH,Finance,Exchequer Services,EXCH,Click Travel Ltd,A044308,06/12/2017,1355395,286.6,Subsistence - Employees
North West Leicestershire District Council,31UH,Housing,HRA Housing Management,HRAHM,PPG Architectural Coatings Ltd,A000876,06/12/2017,1355396,1842.65,Internal Decorations
North West Leicestershire District Council,31UH,Planning & Development,Environment - Town Centre/CCTV,ECCTV,Calder Colours,A044480,06/12/2017,1355403,16500,Grants
North West Leicestershire District Council,31UH,Finance,Financial Planning,FINPLA,Zurich Municipal,A001835,06/12/2017,1355406,1210.78,Insurances
North West Leicestershire District Council,31UH,Finance,Financial Planning,FINPLA,Zurich Municipal,A001835,06/12/2017,1355409,295163.67,Insurances
North West Leicestershire District Council,31UH,Housing Repairs,HRA Housing Repairs & Maintenance,HRAHRM,Timber-Link Fencing Ltd,A033297,06/12/2017,1355412,1040,External Contractor Payments
North West Leicestershire District Council,31UH,Housing Repairs,HRA Housing Repairs & Maintenance,HRAHRM,Timber-Link Fencing Ltd,A033297,06/12/2017,1355413,600,External Contractor Payments
North West Leicestershire District Council,31UH,Housing Repairs,HRA Housing Repairs & Maintenance,HRAHRM,Timber-Link Fencing Ltd,A033297,06/12/2017,1355414,765,External Contractor Payments
North West Leicestershire District Council,31UH,Housing Repairs,HRA Housing Repairs & Maintenance,HRAHRM,Timber-Link Fencing Ltd,A033297,06/12/2017,1355415,1656,External Contractor Payments
North West Leicestershire District Council,31UH,Housing Repairs,HRA Housing Repairs & Maintenance,HRAHRM,Timber-Link Fencing Ltd,A033297,06/12/2017,1355416,1185,External Contractor Payments
North West Leicestershire District Council,31UH,Housing Repairs,HRA Housing Repairs & Maintenance,HRAHRM,Timber-Link Fencing Ltd,A033297,06/12/2017,1355417,1800,External Contractor Payments
North West Leicestershire District Council,31UH,Housing Repairs,HRA Housing Repairs & Maintenance,HRAHRM,Timber-Link Fencing Ltd,A033297,06/12/2017,1355418,350,External Contractor Payments
North West Leicestershire District Council,31UH,Housing Repairs,HRA Housing Repairs & Maintenance,HRAHRM,Timber-Link Fencing Ltd,A033297,06/12/2017,1355419,878,External Contractor Payments
North West Leicestershire District Council,31UH,Finance,Financial Planning,FINPLA,CIPFA,A027467,06/12/2017,1355422,590,Training Expenses
North West Leicestershire District Council,31UH,Property Services,Property Facilities Management,PROPFM,Regarde Security Ltd,A013049,06/12/2017,1355423,492,Building Security
North West Leicestershire District Council,31UH,Housing,HRA Housing Management,HRAHM,BSP Consulting,A043552,06/12/2017,1355430,620,Legal & Professional Services
North West Leicestershire District Council,31UH,Finance,Exchequer Services,EXCH,Kings Armoured Security Services Ltd,A004468,06/12/2017,1355432,1326.46,Cash in Transit Service
North West Leicestershire District Council,31UH,Housing Repairs,HRA Housing Repairs & Maintenance,HRAHRM,G Purchase Construction Ltd,A032830,06/12/2017,1355433,17252.91,Housing repairs
North West Leicestershire District Council,31UH,Housing,HRA Housing Management,HRAHM,Ward Recycling,A035471,06/12/2017,1355436,741.77,Tipping Charges
North West Leicestershire District Council,31UH,Housing,HRA Housing Management,HRAHM,GatenbySanderson Limited,A034524,06/12/2017,1355437,4046,Interim Support
North West Leicestershire District Council,31UH,Finance,Financial Planning,FINPLA,Zurich Municipal,A001835,06/12/2017,1355438,8945.88,Insurances
North West Leicestershire District Council,31UH,Housing,HRA Performance & Business Support,HRAPBS,Michael Page International Recruitment Ltd,A041893,06/12/2017,1355441,2017.75,Agency Staff
North West Leicestershire District Council,31UH,Property Services,Property Commercial Lettings,PROPCL,Water Plus Limited,A044043,06/12/2017,1355444,2027.85,Water Charges (Metered)
North West Leicestershire District Council,31UH,Property Services,Property Commercial Lettings,PROPCL,Water Plus Limited,A044043,06/12/2017,1355445,413.08,Sewerage & Environmental
North West Leicestershire District Council,31UH,Finance,Financial Planning,FINPLA,National Counties Building Society,A042331,07/12/2017,1355515,1000000,Policy Lending
North West Leicestershire District Council,31UH,Corporate Director,Human Resources,HR,The Disclosure & Barring Service,A027625,07/12/2017,1355523,834,CRB Checks
North West Leicestershire District Council,31UH,Property Services,Property Facilities Management,PROPFM,Gleam Team Services Limited,A000129,13/12/2017,1353728,350,External Decorations
North West Leicestershire District Council,31UH,Leisure Centres,Hood Park Leisure Centre,HPLC,Abacus Lighting Limited,A030378,13/12/2017,1355325,1467.96,General Repairs
North West Leicestershire District Council,31UH,Housing Repairs,HRA Housing Repairs & Maintenance,HRAHRM,Sure Maintenance Ltd,A040460,13/12/2017,1355451,750,Plumbing & Heating
North West Leicestershire District Council,31UH,Housing Repairs,HRA Housing Repairs & Maintenance,HRAHRM,Sure Maintenance Ltd,A040460,13/12/2017,1355452,18978.25,Plumbing & Heating
North West Leicestershire District Council,31UH,Leisure & Culture,Cultural Services Arts & Events,CULTEV,Chameleon Pro Audio T/A Lux Technical Ltd,A027592,13/12/2017,1355453,1382.57,Event Expenditure
North West Leicestershire District Council,31UH,Environmental Health,Environmental Health & Licensing,EEHL,Eville And Jones Limited,A033670,13/12/2017,1355454,1168.89,Vet Inspection
North West Leicestershire District Council,31UH,Street Management,Environment Parks,ENOP,ESPO,A000958,13/12/2017,1355457,311.77,Protective Clothing
North West Leicestershire District Council,31UH,Corporate Director,Human Resources,HR,Wider Plan Ltd,A043948,13/12/2017,1355459,4501.8,Staff benefit Scheme
North West Leicestershire District Council,31UH,Property Services,Property Facilities Management,PROPFM,Charnwood Borough Council,A000323,13/12/2017,1355460,1992,Asset Protection
North West Leicestershire District Council,31UH,Street Management,Environment Parks,ENOP,Plantscape Ltd,A033650,13/12/2017,1355465,1035,External Materials
North West Leicestershire District Council,31UH,Leisure & Culture,Cultural Services Arts & Events,CULTEV,Real Reindeer Ltd,A043326,13/12/2017,1355466,597.5,Event Expenditure
North West Leicestershire District Council,31UH,Street Management,Environment Transport,ENOT,Salt Union Ltd,A001433,13/12/2017,1355475,1180.28,Ground Maintenance- Materials
North West Leicestershire District Council,31UH,Information Technology,ICT Services,ICT,Dell Computer Corporation Ltd,A000470,13/12/2017,1355480,1219.2,Admin Equipment - Purchased & Recharged
North West Leicestershire District Council,31UH,Street Management,Environment Parks,ENOP,Central Construction Services,A004448,13/12/2017,1355481,807.37,Contract Payments (Other) Ext
North West Leicestershire District Council,31UH,Finance,Exchequer Services,EXCH,Leicestershire County Council,A000951,13/12/2017,1355482,10916.66,Additional Pension Deductions paid over
North West Leicestershire District Council,31UH,Leisure Centres,Hermitage Leisure Centre,HLC,Gladstone MRM Ltd,A024642,13/12/2017,1355485,1115,Operational Equipment
North West Leicestershire District Council,31UH,Street Management,Environment Waste Management,ENOWM,Norwood Press,A042636,13/12/2017,1355487,620,Publicity & Promotion
North West Leicestershire District Council,31UH,Housing,HRA Older Persons Service,HRAOPS,Tunstall Healthcare (UK) Limited,A001701,13/12/2017,1355495,1500,Alarm System Telephones
North West Leicestershire District Council,31UH,Street Management,Environment Transport,ENOT,GP Fume Extraction Services Limited,A038446,13/12/2017,1355496,426,Operational Equipment - Rep & Maint
North West Leicestershire District Council,31UH,Information Technology,ICT Services,ICT,EE Ltd (Equipment),A043413,13/12/2017,1355500,1160,Mobile Telephones
North West Leicestershire District Council,31UH,Leisure & Culture,Cultural Services TIC,CULTIC,Ashby Dramatic Society,A021686,13/12/2017,1355503,2482.2,Theatre Tickets
North West Leicestershire District Council,31UH,Housing,HRA Housing Management,HRAHM,Redacted-Personal data,A042420,13/12/2017,1355506,250,Under Occupancy Incentives
North West Leicestershire District Council,31UH,Legal & Democratic,Legal Services,LDLS,No 5 Chambers Ltd,A030198,13/12/2017,1355507,750,Legal & Professional Services
North West Leicestershire District Council,31UH,Planning & Development,Environment Community Planning,ECP,Voluntary Action Leicestershire,A038706,13/12/2017,1355509,300,Training Course
North West Leicestershire District Council,31UH,Street Management,Environment Transport,ENOT,GME Motor Engineers (Cov) Ltd,A033389,13/12/2017,1355510,262,Repairs - Parts
North West Leicestershire District Council,31UH,Street Management,Environment Transport,ENOT,GME Motor Engineers (Cov) Ltd,A033389,13/12/2017,1355511,290,Repairs - Parts
North West Leicestershire District Council,31UH,Finance,Exchequer Services,EXCH,Comensura Limited,A036958,13/12/2017,1355513,30155.67,Agency Staff
North West Leicestershire District Council,31UH,Chief Exec,Chief Executive,CHEX,Sable Leigh Consultancy Ltd T/A SLC Rail,A042727,13/12/2017,1355525,2281.25,External Legal Fees & Advice
North West Leicestershire District Council,31UH,Chief Exec,Chief Executive,CHEX,Sable Leigh Consultancy Ltd T/A SLC Rail,A042727,13/12/2017,1355526,1665.5,External Legal Fees & Advice
North West Leicestershire District Council,31UH,Street Management,Environment Transport,ENOT,Lee Wells Autobodies Ltd,A031849,13/12/2017,1355530,330,Non Insurance Damage
North West Leicestershire District Council,31UH,Street Management,Environment Transport,ENOT,Mobile Hydraulics Ltd,A001131,13/12/2017,1355533,567.18,Repairs - Parts
North West Leicestershire District Council,31UH,Street Management,Environment Transport,ENOT,Mobile Hydraulics Ltd,A001131,13/12/2017,1355534,337.69,Repairs - Parts
North West Leicestershire District Council,31UH,Street Management,Environment Transport,ENOT,Mobile Hydraulics Ltd,A001131,13/12/2017,1355536,574.45,Washing Down
North West Leicestershire District Council,31UH,Street Management,Environment Transport,ENOT,Partic Motor Spares Ltd,A042528,13/12/2017,1355547,258,Repairs - Parts
North West Leicestershire District Council,31UH,Street Management,Environment Transport,ENOT,Partic Motor Spares Ltd,A042528,13/12/2017,1355548,330,Repairs - Parts
North West Leicestershire District Council,31UH,Street Management,Environment Transport,ENOT,Dennis Eagle Limited,A000522,13/12/2017,1355551,262.78,Non Scheduled Maintenance - Parts
North West Leicestershire District Council,31UH,Housing Repairs,HRA Housing Repairs & Maintenance,HRAHRM,Severn Trent Water Limited,A001468,13/12/2017,1355553,793.47,Water Connection Services
North West Leicestershire District Council,31UH,Information Technology,ICT Services,ICT,Freedom Communications (UK) Ltd,A032826,13/12/2017,1355556,1543.32,Admin Equipment - Maintenance
North West Leicestershire District Council,31UH,Street Management,Environment Transport,ENOT,Westbury Industrial Supplies Limited,A009933,13/12/2017,1355557,370.74,Protective Clothing
North West Leicestershire District Council,31UH,Street Management,Environment Parks,ENOP,Tudor UK Ltd  (trading as Tudor Environmental),A043777,13/12/2017,1355559,381.42,External Materials
North West Leicestershire District Council,31UH,Planning & Development,Environment - Development Control,EDC,Euro RSCG People T/A Havas People Ltd,A001395,13/12/2017,1355563,521.72,Advertising
North West Leicestershire District Council,31UH,Housing Strategy,Community - Housing Strategy,HS,Primrose Hotels Ltd T/A Hermitage Park Hotel,A010779,13/12/2017,1355564,325,Homelessness Accomodation
North West Leicestershire District Council,31UH,Property Services,Property Facilities Management,PROPFM,Eaton Electrical Ltd,A044048,13/12/2017,1355569,2180,General Repairs
North West Leicestershire District Council,31UH,Property Services,Property Facilities Management,PROPFM,Eaton Electrical Ltd,A044048,13/12/2017,1355570,521.83,Operational Equipment - Rep & Maint
North West Leicestershire District Council,31UH,Housing Repairs,HRA Housing Repairs & Maintenance,HRAHRM,BSP Consulting,A043552,13/12/2017,1355578,1050,Legal & Professional Services
North West Leicestershire District Council,31UH,Housing Repairs,HRA Housing Repairs & Maintenance,HRAHRM,Sure Maintenance Ltd,A040460,13/12/2017,1355579,2106.27,Plumbing & Heating
North West Leicestershire District Council,31UH,Housing Repairs,HRA Housing Repairs & Maintenance,HRAHRM,DMW Environmental Safety Ltd,A044203,13/12/2017,1355580,388.75,Refurbishment Survey and Sampling
North West Leicestershire District Council,31UH,Housing Repairs,HRA Housing Repairs & Maintenance,HRAHRM,G Purchase Construction Ltd,A032830,13/12/2017,1355585,35298.9,Housing repairs
North West Leicestershire District Council,31UH,Housing Repairs,HRA Housing Repairs & Maintenance,HRAHRM,Emperor Scaffolding Limited,A038405,13/12/2017,1355586,300,Hire Of Operational Equipment
North West Leicestershire District Council,31UH,Housing Repairs,HRA Housing Repairs & Maintenance,HRAHRM,Emperor Scaffolding Limited,A038405,13/12/2017,1355587,300,Hire Of Operational Equipment
North West Leicestershire District Council,31UH,Housing Repairs,HRA Housing Repairs & Maintenance,HRAHRM,Emperor Scaffolding Limited,A038405,13/12/2017,1355588,300,Hire Of Operational Equipment
North West Leicestershire District Council,31UH,Housing Repairs,HRA Housing Repairs & Maintenance,HRAHRM,Emperor Scaffolding Limited,A038405,13/12/2017,1355589,600,Hire Of Operational Equipment
North West Leicestershire District Council,31UH,Housing Repairs,HRA Housing Repairs & Maintenance,HRAHRM,Emperor Scaffolding Limited,A038405,13/12/2017,1355590,550,Hire Of Operational Equipment
North West Leicestershire District Council,31UH,Housing Repairs,HRA Housing Repairs & Maintenance,HRAHRM,Emperor Scaffolding Limited,A038405,13/12/2017,1355591,400,Hire Of Operational Equipment
North West Leicestershire District Council,31UH,Housing Repairs,HRA Housing Repairs & Maintenance,HRAHRM,Emperor Scaffolding Limited,A038405,13/12/2017,1355592,400,Hire Of Operational Equipment
North West Leicestershire District Council,31UH,Housing,HRA Housing Management,HRAHM,Redacted-Personal data,A044488,13/12/2017,1355594,250,Under Occupancy Incentives
North West Leicestershire District Council,31UH,Housing Repairs,HRA Housing Repairs & Maintenance,HRAHRM,Redacted-Personal data,A044487,13/12/2017,1355597,1500,Compensation
North West Leicestershire District Council,31UH,Finance,Revenues,REVS,Bristow & Sutor,A031060,13/12/2017,1355600,643.88,Enforcement Agent Fees
North West Leicestershire District Council,31UH,Leisure Centres,Hermitage Leisure Centre,HLC,Open Box Promotions,A039721,13/12/2017,1355602,626,Publicity & Promotion
North West Leicestershire District Council,31UH,Planning & Development,Building Control,EBC,Leicestershire County Council,A027423,13/12/2017,1355605,1799,Search Fees -LCC
North West Leicestershire District Council,31UH,Corporate Director,Human Resources,HR,Inchcape Fleet Solutions,A039405,13/12/2017,1355606,319.2,Vehicle Leasing
North West Leicestershire District Council,31UH,Corporate Director,Human Resources,HR,Lex Autolease Ltd,A008591,13/12/2017,1355607,2411.33,Vehicle Leasing
North West Leicestershire District Council,31UH,Corporate Director,Human Resources,HR,Inchcape Fleet Solutions,A039405,13/12/2017,1355608,319.2,Vehicle Leasing
North West Leicestershire District Council,31UH,Street Management,Environment - Street Scene,ESS,Metric Group Ltd (Sales),A028996,13/12/2017,1355611,252,Subscriptions
North West Leicestershire District Council,31UH,Street Management,Environment - Street Scene,ESS,Keep Britain Tidy,A025681,13/12/2017,1355612,1995,Subscriptions
North West Leicestershire District Council,31UH,Leisure & Culture,Cultural Services Arts & Events,CULTEV,Regarde Security Ltd,A013049,13/12/2017,1355615,265.95,Event Expenditure
North West Leicestershire District Council,31UH,Property Services,Property Facilities Management,PROPFM,British Telecommunications Plc,A000233,13/12/2017,1355626,552.01,Telephones
North West Leicestershire District Council,31UH,Information Technology,ICT Services,ICT,Canon UK Ltd,A040459,13/12/2017,1355631,1474.38,Equipment Operating Leases
North West Leicestershire District Council,31UH,Leisure Centres,Hermitage Leisure Centre,HLC,Sterling Hydrotech Limited,A037677,13/12/2017,1355634,394,Service Contracts
North West Leicestershire District Council,31UH,Leisure Centres,Hermitage Leisure Centre,HLC,CSS Pools & Leisure,A034993,13/12/2017,1355640,470.85,Service Contracts
North West Leicestershire District Council,31UH,Street Management,Environment Waste Management,ENOWM,Westbury Industrial Supplies Limited,A009933,13/12/2017,1355641,439.31,Protective Clothing
North West Leicestershire District Council,31UH,Street Management,Environment Transport,ENOT,Complete Vehicle Accessories Ltd,A044023,13/12/2017,1355645,6735,Operational Equipment
North West Leicestershire District Council,31UH,Property Services,Property Commercial Lettings,PROPCL,John Merison BMC Ltd,A001092,13/12/2017,1355653,531.65,General Repairs
North West Leicestershire District Council,31UH,Leisure Centres,Hood Park Bar and Catering,HPBC,Molson Coors Brewing Company (UK) Ltd,A044397,13/12/2017,1355658,1233.11,Bar Provisions
North West Leicestershire District Council,31UH,Property Services,Property Facilities Management,PROPFM,Water Plus Limited,A044043,13/12/2017,1355659,1962.09,Water Charges (Metered)
North West Leicestershire District Council,31UH,Housing Repairs,HRA Housing Repairs & Maintenance,HRAHRM,Ward Recycling,A035471,13/12/2017,1355737,341.86,Tipping Charges
North West Leicestershire District Council,31UH,Street Management,Environment Parks,ENOP,Tudor UK Ltd  (trading as Tudor Environmental),A043777,13/12/2017,1355740,685.85,External Materials
North West Leicestershire District Council,31UH,Finance,Financial Planning,FINPLA,NHS West Leicestershire,A042958,13/12/2017,1355741,8450.93,Section 106 Agreement Payment
North West Leicestershire District Council,31UH,Finance,Financial Planning,FINPLA,NHS West Leicestershire,A042958,13/12/2017,1355742,4087.71,Section 106 Agreement Payment
North West Leicestershire District Council,31UH,Finance,Financial Planning,FINPLA,NHS West Leicestershire,A042958,13/12/2017,1355743,10655.07,Section 106 Agreement Payment
North West Leicestershire District Council,31UH,Housing Repairs,HRA Housing Repairs & Maintenance,HRAHRM,Sure Maintenance Ltd,A040460,13/12/2017,1355745,1483,Plumbing & Heating
North West Leicestershire District Council,31UH,Housing Repairs,HRA Housing Repairs & Maintenance,HRAHRM,Sure Maintenance Ltd,A040460,13/12/2017,1355746,4362.4,Plumbing & Heating
North West Leicestershire District Council,31UH,Housing Repairs,HRA Housing Repairs & Maintenance,HRAHRM,Sure Maintenance Ltd,A040460,13/12/2017,1355747,1483,Plumbing & Heating
North West Leicestershire District Council,31UH,Housing Repairs,HRA Housing Repairs & Maintenance,HRAHRM,Sure Maintenance Ltd,A040460,13/12/2017,1355748,1395,Plumbing & Heating
North West Leicestershire District Council,31UH,Housing Repairs,HRA Housing Repairs & Maintenance,HRAHRM,Sure Maintenance Ltd,A040460,13/12/2017,1355749,3173.15,Plumbing & Heating
North West Leicestershire District Council,31UH,Housing Repairs,HRA Housing Repairs & Maintenance,HRAHRM,Kier Services Maintenance East Ltd,A039980,13/12/2017,1355756,3148.14,Decent Homes
North West Leicestershire District Council,31UH,Housing Repairs,HRA Housing Repairs & Maintenance,HRAHRM,Kier Services Maintenance East Ltd,A039980,13/12/2017,1355757,480.65,Decent Homes
North West Leicestershire District Council,31UH,Housing Repairs,HRA Housing Repairs & Maintenance,HRAHRM,Kier Services Maintenance East Ltd,A039980,13/12/2017,1355758,480.65,Decent Homes
North West Leicestershire District Council,31UH,Housing Repairs,HRA Housing Repairs & Maintenance,HRAHRM,Kier Services Maintenance East Ltd,A039980,13/12/2017,1355759,319.14,Decent Homes
North West Leicestershire District Council,31UH,Housing Repairs,HRA Housing Repairs & Maintenance,HRAHRM,Kier Services Maintenance East Ltd,A039980,13/12/2017,1355760,319.14,Decent Homes
North West Leicestershire District Council,31UH,Housing Repairs,HRA Housing Repairs & Maintenance,HRAHRM,Kier Services Maintenance East Ltd,A039980,13/12/2017,1355761,3671.9,Decent Homes
North West Leicestershire District Council,31UH,Housing Repairs,HRA Housing Repairs & Maintenance,HRAHRM,Kier Services Maintenance East Ltd,A039980,13/12/2017,1355762,3604.56,Decent Homes
North West Leicestershire District Council,31UH,Housing Repairs,HRA Housing Repairs & Maintenance,HRAHRM,Kier Services Maintenance East Ltd,A039980,13/12/2017,1355763,3671.9,Decent Homes
North West Leicestershire District Council,31UH,Housing Repairs,HRA Housing Repairs & Maintenance,HRAHRM,Kier Services Maintenance East Ltd,A039980,13/12/2017,1355764,3302.63,Decent Homes
North West Leicestershire District Council,31UH,Housing Repairs,HRA Housing Repairs & Maintenance,HRAHRM,Kier Services Maintenance East Ltd,A039980,13/12/2017,1355765,1998.07,Decent Homes
North West Leicestershire District Council,31UH,Housing Repairs,HRA Housing Repairs & Maintenance,HRAHRM,Kier Services Maintenance East Ltd,A039980,13/12/2017,1355766,509.24,Decent Homes
North West Leicestershire District Council,31UH,Housing Repairs,HRA Housing Repairs & Maintenance,HRAHRM,Kier Services Maintenance East Ltd,A039980,13/12/2017,1355767,480.65,Decent Homes
North West Leicestershire District Council,31UH,Housing Repairs,HRA Housing Repairs & Maintenance,HRAHRM,Kier Services Maintenance East Ltd,A039980,13/12/2017,1355768,480.65,Decent Homes
North West Leicestershire District Council,31UH,Housing Repairs,HRA Housing Repairs & Maintenance,HRAHRM,Orbis Property Protection Ltd,A028149,13/12/2017,1355769,489,Void Property Clearance Services
North West Leicestershire District Council,31UH,Housing Repairs,HRA Housing Repairs & Maintenance,HRAHRM,Fire Proof Ltd,A039911,13/12/2017,1355770,300,Fire Protection Services
North West Leicestershire District Council,31UH,Housing Repairs,HRA Housing Repairs & Maintenance,HRAHRM,Laker BMS Ltd,A031787,13/12/2017,1355771,5596.03,Housing Repairs
North West Leicestershire District Council,31UH,Housing Repairs,HRA Housing Repairs & Maintenance,HRAHRM,Laker BMS Ltd,A031787,13/12/2017,1355772,3523.38,Housing Repairs
North West Leicestershire District Council,31UH,Housing Repairs,HRA Housing Repairs & Maintenance,HRAHRM,Laker BMS Ltd,A031787,13/12/2017,1355773,4950,Housing Repairs
North West Leicestershire District Council,31UH,Housing Repairs,HRA Housing Repairs & Maintenance,HRAHRM,Orbis Property Protection Ltd,A028149,13/12/2017,1355774,340,Void Property Clearance Services
North West Leicestershire District Council,31UH,Housing Repairs,HRA Housing Repairs & Maintenance,HRAHRM,Laker BMS Ltd,A031787,13/12/2017,1355775,1021.37,Housing Repairs
North West Leicestershire District Council,31UH,Housing Repairs,HRA Housing Repairs & Maintenance,HRAHRM,Orbis Property Protection Ltd,A028149,13/12/2017,1355778,344.5,Void Property Clearance Services
North West Leicestershire District Council,31UH,Housing Repairs,HRA Housing Repairs & Maintenance,HRAHRM,Orbis Property Protection Ltd,A028149,13/12/2017,1355793,274,Void Property Clearance Services
North West Leicestershire District Council,31UH,Housing Repairs,HRA Housing Repairs & Maintenance,HRAHRM,Orbis Property Protection Ltd,A028149,13/12/2017,1355794,425,Void Property Clearance Services
North West Leicestershire District Council,31UH,Housing Repairs,HRA Housing Repairs & Maintenance,HRAHRM,Orbis Property Protection Ltd,A028149,13/12/2017,1355795,340,Void Property Clearance Services
North West Leicestershire District Council,31UH,Housing Repairs,HRA Housing Repairs & Maintenance,HRAHRM,Heights Installations,A041264,13/12/2017,1355798,565,Satellite and Cable Services
North West Leicestershire District Council,31UH,Housing Repairs,HRA Housing Repairs & Maintenance,HRAHRM,Laker BMS Ltd,A031787,13/12/2017,1355800,3950,Housing Repairs
North West Leicestershire District Council,31UH,Housing Repairs,HRA Housing Repairs & Maintenance,HRAHRM,Laker BMS Ltd,A031787,13/12/2017,1355801,3636.37,Housing Repairs
North West Leicestershire District Council,31UH,Housing Repairs,HRA Housing Repairs & Maintenance,HRAHRM,Laker BMS Ltd,A031787,13/12/2017,1355802,4314.84,Housing Repairs
North West Leicestershire District Council,31UH,Housing Repairs,HRA Housing Repairs & Maintenance,HRAHRM,Laker BMS Ltd,A031787,13/12/2017,1355803,3696.31,Housing Repairs
North West Leicestershire District Council,31UH,Housing Repairs,HRA Housing Repairs & Maintenance,HRAHRM,Laker BMS Ltd,A031787,13/12/2017,1355805,578,Housing Repairs
North West Leicestershire District Council,31UH,Housing Repairs,HRA Housing Repairs & Maintenance,HRAHRM,Sure Maintenance Ltd,A040460,13/12/2017,1355806,320.05,Plumbing & Heating
North West Leicestershire District Council,31UH,Housing Repairs,HRA Housing Repairs & Maintenance,HRAHRM,Laker BMS Ltd,A031787,13/12/2017,1355821,3673.45,Housing Repairs
North West Leicestershire District Council,31UH,Housing Repairs,HRA Housing Repairs & Maintenance,HRAHRM,Fire Proof Ltd,A039911,13/12/2017,1355822,757.6,Fire Protection Services
North West Leicestershire District Council,31UH,Leisure & Culture,Cultural Services Arts & Events,CULTEV,Social Media Training,A044216,13/12/2017,1355831,495,Training Expenses
North West Leicestershire District Council,31UH,Finance,Exchequer Services,EXCH,Total Gas & Power,A033385,15/12/2017,1355907,15122.78,Electricity
North West Leicestershire District Council,31UH,Legal & Democratic,Legal Services,LDLS,HMCTS,A033956,15/12/2017,1355908,297,Legal & Professional Services
North West Leicestershire District Council,31UH,Housing Repairs,HRA Housing Repairs & Maintenance,HRAHRM,Browne Jacobson,A000133,15/12/2017,1355909,3711.6,Legal & Professional Services
North West Leicestershire District Council,31UH,Street Management,Environment Transport,ENOT,By Pass Filtration Ltd,A003827,20/12/2017,1350419,270.5,Scheduled Servicing - Parts
North West Leicestershire District Council,31UH,Legal & Democratic,Business Development Team,BDT,Customer Research Technology Ltd,A034754,20/12/2017,1353587,2010,Software Licences
North West Leicestershire District Council,31UH,Chief Exec,Chief Executive,CHEX,ESPO,A000958,20/12/2017,1353829,368,Office Furniture
North West Leicestershire District Council,31UH,Street Management,Environment Parks,ENOP,Rigby Taylor Limited,A001392,20/12/2017,1354167,590,Operational Equipment - Purchases
North West Leicestershire District Council,31UH,Housing Repairs,HRA Housing Repairs & Maintenance,HRAHRM,Terratruck Distribution Services Ltd,A001648,20/12/2017,1354460,1470,Consumable Materials
North West Leicestershire District Council,31UH,Leisure Centres,Hermitage Leisure Centre,HLC,Admiral Cleaning Supplies Ltd,A040930,20/12/2017,1355272,385.04,Water Treatment
North West Leicestershire District Council,31UH,Leisure Centres,Hood Park Leisure Centre,HPLC,Mainline Tool & Plant Hire Limited,A037741,20/12/2017,1355462,260,Health & Safety Repairs/Maintenance
North West Leicestershire District Council,31UH,Street Management,Environment - Street Scene,ESS,White Young Green Environmental Ltd,A030438,20/12/2017,1355497,5060,Consultants Fees
North West Leicestershire District Council,31UH,Leisure Centres,Hermitage Leisure Centre,HLC,ESPO,A000958,20/12/2017,1355558,278,Operational Equipment
North West Leicestershire District Council,31UH,Housing,HRA Performance & Business Support,HRAPBS,Ultra Electronics Command & Control Systems,A037426,20/12/2017,1355627,307.5,Computing
North West Leicestershire District Council,31UH,Housing,HRA Housing Management,HRAHM,Water Plus Limited,A044043,20/12/2017,1355840,878.63,Water Charges (Metered)
North West Leicestershire District Council,31UH,Street Management,Environment Transport,ENOT,Certas Energy Uk Ltd,A043448,20/12/2017,1355848,17494.49,Fuel
North West Leicestershire District Council,31UH,Street Management,Environment Transport,ENOT,Certas Energy Uk Ltd,A043448,20/12/2017,1355849,915.12,Fuel
North West Leicestershire District Council,31UH,Housing,HRA Performance & Business Support,HRAPBS,Michael Page International Recruitment Ltd,A041893,20/12/2017,1355859,2017.75,Agency Staff
North West Leicestershire District Council,31UH,Street Management,Environment Transport,ENOT,Westbury Industrial Supplies Limited,A009933,20/12/2017,1355860,315,Operational Equipment
North West Leicestershire District Council,31UH,Street Management,Environment Transport,ENOT,Westbury Industrial Supplies Limited,A009933,20/12/2017,1355865,358.1,Protective Clothing
North West Leicestershire District Council,31UH,Leisure & Culture,Cultural Services TIC,CULTIC,Ashby Dramatic Society Trust,A027431,20/12/2017,1355869,270,Theatre Tickets
North West Leicestershire District Council,31UH,Housing,HRA Performance & Business Support,HRAPBS,Polina Limited (IMGE),A044300,20/12/2017,1355874,1374.5,Subsistence - Employees
North West Leicestershire District Council,31UH,Housing,HRA Housing Management,HRAHM,Redacted-Personal data,A044470,20/12/2017,1355876,500,Under Occupancy Incentives
North West Leicestershire District Council,31UH,Housing,HRA Housing Management,HRAHM,Redacted-Personal data,A044493,20/12/2017,1355878,250,Under Occupancy Incentives
North West Leicestershire District Council,31UH,Housing,HRA Housing Management,HRAHM,Severn Trent Water Limited,A001468,20/12/2017,1355879,862.61,Water Connection Services
North West Leicestershire District Council,31UH,Street Management,Environment - Street Scene,ESS,Metric Group Ltd (Repairs),A036055,20/12/2017,1355880,413.04,Operational Equipment
North West Leicestershire District Council,31UH,Planning & Development,Environment Community Planning,ECP,Broadland Guarding Services Ltd,A042635,20/12/2017,1355881,4389.19,Agency Staff
North West Leicestershire District Council,31UH,Street Management,Environment Transport,ENOT,Calor Gas Limited,A032686,20/12/2017,1355882,521.89,Gas
North West Leicestershire District Council,31UH,Street Management,Environment Waste Management,ENOWM,Gardners,A044060,20/12/2017,1355885,4264,Publicity & Promotion
North West Leicestershire District Council,31UH,Street Management,Environment Waste Management,ENOWM,Gardners,A044060,20/12/2017,1355886,1322.5,Publicity & Promotion
North West Leicestershire District Council,31UH,Planning & Development,Environment Planning Policy,EPP,Leicestershire County Council,A000950,20/12/2017,1355891,10400,Consultants Fees
North West Leicestershire District Council,31UH,Planning & Development,Environment Planning Policy,EPP,Leicestershire County Council,A000950,20/12/2017,1355892,5944,Consultants Fees
North West Leicestershire District Council,31UH,Housing,HRA Housing Management,HRAHM,Chartered Institute Of Housing,A000329,20/12/2017,1355894,298,Subscriptions
North West Leicestershire District Council,31UH,Housing,HRA Housing Management,HRAHM,Chartered Institute Of Housing,A000329,20/12/2017,1355895,298,Subscriptions
North West Leicestershire District Council,31UH,Housing,HRA Housing Management,HRAHM,Chartered Institute Of Housing,A000329,20/12/2017,1355896,298,Subscriptions
North West Leicestershire District Council,31UH,Housing,HRA Housing Management,HRAHM,Chartered Institute Of Housing,A000329,20/12/2017,1355897,298,Subscriptions
North West Leicestershire District Council,31UH,Finance,Exchequer Services,EXCH,Comensura Limited,A036958,20/12/2017,1355901,27054.01,Agency Staff
North West Leicestershire District Council,31UH,Street Management,Environment Parks,ENOP,Central Construction Services,A004448,20/12/2017,1355905,274.39,Contract Payments (Other) Ext
North West Leicestershire District Council,31UH,Street Management,Environment Parks,ENOP,Central Construction Services,A004448,20/12/2017,1355906,543.7,Contract Payments (Other) Ext
North West Leicestershire District Council,31UH,Property Services,Property Facilities Management,PROPFM,JR Allen & Sons Ltd,A030942,20/12/2017,1355912,1030,General Repairs
North West Leicestershire District Council,31UH,Communications,Corporate - Customer Services,CS,Capita Business Services Ltd,A002968,20/12/2017,1355913,5254.8,Computing
North West Leicestershire District Council,31UH,Leisure Centres,Castle Donington Community College,CDCC,Elliott Group Limited,A005413,20/12/2017,1355920,505.72,Secure Storage
North West Leicestershire District Council,31UH,Information Technology,ICT Services,ICT,Insight Uk,A021505,20/12/2017,1355926,715,Admin Equipment - Purchased & Recharged
North West Leicestershire District Council,31UH,Street Management,Environment Transport,ENOT,J F Lloyd & Sons,A000991,20/12/2017,1355927,250,Hire Of Operational Equipment
North West Leicestershire District Council,31UH,Leisure Centres,Hermitage Leisure Centre,HLC,Revolution,A001386,20/12/2017,1355929,311,Protective Clothing
North West Leicestershire District Council,31UH,Leisure Centres,Hermitage Bar & Catering,HLBC,Hopwells Frozen Foods Limited,A000783,20/12/2017,1355932,271.15,Catering Provisions
North West Leicestershire District Council,31UH,Leisure Centres,Hermitage Bar & Catering,HLBC,Catering Services (Supplies) Ltd,A000310,20/12/2017,1355935,252.96,Catering Provisions
North West Leicestershire District Council,31UH,Street Management,Environment Waste Management,ENOWM,Groundsman Tools & Supplies,A030744,20/12/2017,1355950,847,Operational Equipment
North West Leicestershire District Council,31UH,Street Management,Environment Transport,ENOT,Dennis Eagle Limited,A000522,20/12/2017,1355952,251.22,Repairs - Parts
North West Leicestershire District Council,31UH,Planning & Development,Environment Community Planning,ECP,Broadland Guarding Services Ltd,A042635,20/12/2017,1355956,4034.61,Agency Staff
North West Leicestershire District Council,31UH,Information Technology,ICT Services,ICT,Phoenix Software Limited,A001298,20/12/2017,1355957,310.6,Admin Equipment - Maintenance
North West Leicestershire District Council,31UH,Chief Exec,Chief Executive,CHEX,RPT Consulting Ltd,A043782,20/12/2017,1355965,1947,Consultants Fees
North West Leicestershire District Council,31UH,Chief Exec,Chief Executive,CHEX,CBRE Ltd,A041437,20/12/2017,1355966,3750,Legal & Professional Services
North West Leicestershire District Council,31UH,Planning & Development,Environment Community Planning,ECP,Messagemaker Displays Ltd,A044452,20/12/2017,1355969,5372,Electronic Signage
North West Leicestershire District Council,31UH,Property Services,Property Commercial Lettings,PROPCL,John Merison BMC Ltd,A001092,20/12/2017,1355972,514.55,General Repairs
North West Leicestershire District Council,31UH,Property Services,Property Commercial Lettings,PROPCL,John Merison BMC Ltd,A001092,20/12/2017,1355973,1978.65,General Repairs
North West Leicestershire District Council,31UH,Legal & Democratic,Electoral & Land Charges,LDELC,The Association Of Electoral,A015344,20/12/2017,1355984,740,Training Expenses
North West Leicestershire District Council,31UH,Chief Exec,Chief Executive,CHEX,Jeremy Benn Associates Ltd (t/a JBA Consulting),A044010,20/12/2017,1355987,14184.92,Consultants Fees
North West Leicestershire District Council,31UH,Chief Exec,Chief Executive,CHEX,David Tucker Associates,A044236,20/12/2017,1355988,1385.5,Consultants Fees
North West Leicestershire District Council,31UH,Leisure Centres,Hermitage Bar & Catering,HLBC,Snackline Direct Ltd,A042489,20/12/2017,1355989,538.91,Vending Machine Provisions
North West Leicestershire District Council,31UH,Leisure Centres,Hermitage Bar & Catering,HLBC,Snackline Direct Ltd,A042489,20/12/2017,1355990,588.31,Catering Provisions
North West Leicestershire District Council,31UH,Information Technology,ICT Services,ICT,Six Degrees Technology Group Ltd,A044205,20/12/2017,1355996,1290.15,ICT Equipment
North West Leicestershire District Council,31UH,Street Management,Environment Parks,ENOP,Taylors Buildbase,A035303,20/12/2017,1356001,297.01,Operational Equipment - Purchases
North West Leicestershire District Council,31UH,Planning & Development,Environment Community Planning,ECP,Supplies Team Limited,A032010,20/12/2017,1356003,332.02,Printer Consumables
North West Leicestershire District Council,31UH,Leisure Centres,Hermitage Leisure Centre,HLC,Crestline Printers Limited,A000434,20/12/2017,1356007,255,Publicity & Promotion
North West Leicestershire District Council,31UH,Corporate Director,Human Resources,HR,Spectra Security Limited,A002190,20/12/2017,1356009,504,Door Access Systems
North West Leicestershire District Council,31UH,Street Management,Environment Transport,ENOT,Ford & Slater Group Ltd,A000625,20/12/2017,1356010,353,Repairs - Parts
North West Leicestershire District Council,31UH,Leisure & Culture,Leisure & Cult Mangt,LCM,Julia Burkin,A043213,20/12/2017,1356023,992.61,Consultants Fees
North West Leicestershire District Council,31UH,Leisure & Culture,Cultural Services Arts & Events,CULTEV,Hermitage FM,A041913,20/12/2017,1356026,300,Event Expenditure
North West Leicestershire District Council,31UH,Housing Repairs,HRA Housing Repairs & Maintenance,HRAHRM,Emperor Scaffolding Limited,A038405,20/12/2017,1356027,600,Hire Of Operational Equipment
North West Leicestershire District Council,31UH,Housing Repairs,HRA Housing Repairs & Maintenance,HRAHRM,Emperor Scaffolding Limited,A038405,20/12/2017,1356030,400,Hire Of Operational Equipment
North West Leicestershire District Council,31UH,Housing Repairs,HRA Housing Repairs & Maintenance,HRAHRM,Emperor Scaffolding Limited,A038405,20/12/2017,1356031,750,Hire Of Operational Equipment
North West Leicestershire District Council,31UH,Housing Repairs,HRA Housing Repairs & Maintenance,HRAHRM,Emperor Scaffolding Limited,A038405,20/12/2017,1356032,300,Hire Of Operational Equipment
North West Leicestershire District Council,31UH,Leisure & Culture,Leisure & Cult Mangt,LCM,Alma's Vintage Sandwich & Cake Shop,A044503,20/12/2017,1356043,500,Grants
North West Leicestershire District Council,31UH,Leisure & Culture,Leisure & Cult Mangt,LCM,Lady J Lingerie,A044504,20/12/2017,1356044,23379.88,Coalville Shop Front Project
North West Leicestershire District Council,31UH,Leisure & Culture,Leisure & Cult Mangt,LCM,Strawberry House Interiors,A044505,20/12/2017,1356045,16000,Coalville Shop Front Project
North West Leicestershire District Council,31UH,Chief Exec,Chief Executive,CHEX,David Nash ( trading as Koda Consulting),A043827,20/12/2017,1356047,4248,Consultants Fees
North West Leicestershire District Council,31UH,Information Technology,ICT Services,ICT,Adept Telecom Plc,A044193,20/12/2017,1356048,18799.92,Contract Payments (Other) Ext
North West Leicestershire District Council,31UH,Environmental Health,Environmental Services,EES,College Garth Boarding Kennels,A000385,20/12/2017,1356049,1855.5,Stray Dog Service- Kennelling Fees
North West Leicestershire District Council,31UH,Corporate Director,Human Resources,HR,GatenbySanderson Limited,A034524,20/12/2017,1356052,4046,Interim Support
North West Leicestershire District Council,31UH,Corporate Director,Human Resources,HR,Euro RSCG People T/A Havas People Ltd,A001395,20/12/2017,1356053,3831.3,Employee Advertising
North West Leicestershire District Council,31UH,Housing,HRA Housing Management,HRAHM,E.on,A000528,20/12/2017,1356055,389.66,Gas
North West Leicestershire District Council,31UH,Housing Repairs,HRA Housing Repairs & Maintenance,HRAHRM,Just Housing UK Ltd,A044496,20/12/2017,1356056,1575.6,Consultants Fees
North West Leicestershire District Council,31UH,Street Management,Environment Transport,ENOT,Second 2 None,A031408,20/12/2017,1356058,290,Vehicle Valeting
North West Leicestershire District Council,31UH,Street Management,Environment Transport,ENOT,Sherwood Truck and Van Limited,A035120,20/12/2017,1356061,289.64,Repairs - Parts
North West Leicestershire District Council,31UH,Street Management,Environment Transport,ENOT,Henton & Chattell Limited,A000757,20/12/2017,1356063,496.1,Repairs - Parts
North West Leicestershire District Council,31UH,Street Management,Environment Transport,ENOT,Salt Union Ltd,A001433,20/12/2017,1356068,1141.89,Ground Maintenance- Materials
North West Leicestershire District Council,31UH,Finance,Financial Planning,FINPLA,Zurich Municipal,A001835,20/12/2017,1356126,-25682.01,Other Premises Insurance
North West Leicestershire District Council,31UH,Finance,Financial Planning,FINPLA,Zurich Municipal,A001835,20/12/2017,1356127,25682.01,Other Premises Insurance
North West Leicestershire District Council,31UH,Finance,Financial Planning,FINPLA,Zurich Municipal,A001835,20/12/2017,1356128,-2163.55,Insurances
North West Leicestershire District Council,31UH,Finance,Financial Planning,FINPLA,Zurich Municipal,A001835,20/12/2017,1356129,2163.55,Insurances
North West Leicestershire District Council,31UH,Finance,Financial Planning,FINPLA,Zurich Municipal,A001835,20/12/2017,1356130,16037.64,Insurances
North West Leicestershire District Council,31UH,Finance,Financial Planning,FINPLA,Zurich Municipal,A001835,20/12/2017,1356132,9721.15,Insurances
North West Leicestershire District Council,31UH,Leisure Centres,Hermitage Leisure Centre,HLC,The Knowledge Academy Ltd,A042117,20/12/2017,1356146,575,Training Expenses
North West Leicestershire District Council,31UH,Leisure Centres,Hermitage Leisure Centre,HLC,Measham Leisure Centre,A027454,20/12/2017,1356147,2320.68,Measham LC Lifestyle DD
North West Leicestershire District Council,31UH,Housing,HRA Housing Management,HRAHM,Tunstall Healthcare (UK) Limited,A001701,27/12/2017,1355872,300,Alarm System Telephones
North West Leicestershire District Council,31UH,Property Services,Property Facilities Management,PROPFM,Eaton Electrical Ltd,A044048,27/12/2017,1356006,1355.16,Abnormal Maintenance
North West Leicestershire District Council,31UH,Street Management,Environment Parks,ENOP,New Build Landscaping & Home,A043278,27/12/2017,1356065,620,External Contractor Payments
North West Leicestershire District Council,31UH,Leisure Centres,Hermitage Bar & Catering,HLBC,Molson Coors Brewing Company (UK) Ltd,A044397,27/12/2017,1356149,673.73,Bar Provisions
North West Leicestershire District Council,31UH,Leisure Centres,Hermitage Bar & Catering,HLBC,Snackline Direct Ltd,A042489,27/12/2017,1356153,461.02,Catering Provisions
North West Leicestershire District Council,31UH,Leisure Centres,Hermitage Leisure Centre,HLC,Chubb Electronic Security Ltd,A035910,27/12/2017,1356155,827.19,Alarm System Maintenance
North West Leicestershire District Council,31UH,Leisure Centres,Hermitage Leisure Centre,HLC,Dura-Sport (Leisure Care) Ltd,A041815,27/12/2017,1356160,350,General Repairs
North West Leicestershire District Council,31UH,Leisure Centres,Hermitage Leisure Centre,HLC,CSS Pools & Leisure,A034993,27/12/2017,1356165,466.97,Repairs - Market Stalls
North West Leicestershire District Council,31UH,Leisure Centres,Hermitage Bar & Catering,HLBC,Molson Coors Brewing Company (UK) Ltd,A044397,27/12/2017,1356166,551.09,Bar Provisions
North West Leicestershire District Council,31UH,Street Management,Environment Parks,ENOP,Taylors Buildbase,A035303,27/12/2017,1356171,494,External Materials
North West Leicestershire District Council,31UH,Leisure & Culture,Cultural Services TIC,CULTIC,Ashby Concert Band,A044484,27/12/2017,1356175,256.5,Theatre Tickets
North West Leicestershire District Council,31UH,Leisure & Culture,Sport & Physical Activity,SPA,Apse,A018837,27/12/2017,1356195,438,Training Expenses
North West Leicestershire District Council,31UH,Information Technology,ICT Services,ICT,TeamViewer Gmbh,A042230,27/12/2017,1356205,1253.4,Admin Equipment - Maintenance
North West Leicestershire District Council,31UH,Housing Repairs,HRA Housing Repairs & Maintenance,HRAHRM,Laker BMS Ltd,A031787,27/12/2017,1356206,59632.49,Housing Repairs
North West Leicestershire District Council,31UH,Finance,Financial Planning,FINPLA,Hinckley & Bosworth Borough Council,A000770,27/12/2017,1356208,17190,Shared Revs & Bens Partnership costs
North West Leicestershire District Council,31UH,Finance,Exchequer Services,EXCH,Comensura Limited,A036958,27/12/2017,1356209,31597.29,Agency Staff
North West Leicestershire District Council,31UH,Planning & Development,Environment - Town Centre/CCTV,ECCTV,Water Plus Limited,A044043,27/12/2017,1356218,482.91,Water Charges (Metered)
North West Leicestershire District Council,31UH,Housing Repairs,HRA Housing Repairs & Maintenance,HRAHRM,Robert Woodhead Ltd,A043924,27/12/2017,1356221,235583.21,Legal & Professional Services
North West Leicestershire District Council,31UH,Housing Repairs,HRA Housing Repairs & Maintenance,HRAHRM,Sure Maintenance Ltd,A040460,27/12/2017,1356223,445,Plumbing & Heating
North West Leicestershire District Council,31UH,Housing Repairs,HRA Housing Repairs & Maintenance,HRAHRM,Leicestershire County Council,A000950,27/12/2017,1356226,2346.78,Contract Payments (Dws) Ext
North West Leicestershire District Council,31UH,Housing Repairs,HRA Housing Repairs & Maintenance,HRAHRM,Leicestershire County Council,A000950,27/12/2017,1356227,2875,Contract Payments (Dws) Ext
North West Leicestershire District Council,31UH,Housing Repairs,HRA Housing Repairs & Maintenance,HRAHRM,Leicestershire County Council,A000950,27/12/2017,1356228,4117,Contract Payments (Dws) Ext
North West Leicestershire District Council,31UH,Housing Repairs,HRA Housing Repairs & Maintenance,HRAHRM,Laker BMS Ltd,A031787,27/12/2017,1356229,2487.05,Housing Repairs
North West Leicestershire District Council,31UH,Housing Repairs,HRA Housing Repairs & Maintenance,HRAHRM,Laker BMS Ltd,A031787,27/12/2017,1356230,504.45,Housing Repairs
North West Leicestershire District Council,31UH,Housing Repairs,HRA Housing Repairs & Maintenance,HRAHRM,Laker BMS Ltd,A031787,27/12/2017,1356232,1460.25,Housing Repairs
North West Leicestershire District Council,31UH,Housing Repairs,HRA Housing Repairs & Maintenance,HRAHRM,H20 Utilities Ltd,A043865,27/12/2017,1356233,750,Associated Drainage Services
North West Leicestershire District Council,31UH,Leisure Centres,Hood Park Leisure Centre,HPLC,Premiere Property Services Ltd,A044062,27/12/2017,1356237,1293.75,Repairs - Market Stalls
North West Leicestershire District Council,31UH,Leisure Centres,Hood Park Leisure Centre,HPLC,Dura-Sport (Leisure Care) Ltd,A041815,27/12/2017,1356241,280,General Repairs
North West Leicestershire District Council,31UH,Leisure Centres,Hood Park Leisure Centre,HPLC,Ivanhoe Community College,A000852,27/12/2017,1356249,4971.1,Miscellaneous Insurances
North West Leicestershire District Council,31UH,Planning & Development,Environment Community Planning,ECP,Proudcastle,A040322,27/12/2017,1356254,550,CCTV relocation
North West Leicestershire District Council,31UH,Property Services,Property Commercial Lettings,PROPCL,Coalville Cleaning Services,A003037,27/12/2017,1356266,289.95,Contract Cleaning
North West Leicestershire District Council,31UH,Property Services,Property Commercial Lettings,PROPCL,Coalville Cleaning Services,A003037,27/12/2017,1356267,558.06,Contract Cleaning
North West Leicestershire District Council,31UH,Housing,HRA Housing Management,HRAHM,Coalville Yellow Cabs,A041983,27/12/2017,1356271,454.02,Public Transport
North West Leicestershire District Council,31UH,Housing Repairs,HRA Housing Repairs & Maintenance,HRAHRM,Fire Proof Ltd,A039911,27/12/2017,1356276,356.5,Fire Protection Services
North West Leicestershire District Council,31UH,Housing Repairs,HRA Housing Repairs & Maintenance,HRAHRM,Orbis Property Protection Ltd,A028149,27/12/2017,1356282,325,Void Property Clearance Services
North West Leicestershire District Council,31UH,Housing Repairs,HRA Housing Repairs & Maintenance,HRAHRM,Orbis Property Protection Ltd,A028149,27/12/2017,1356283,285,Void Property Clearance Services
North West Leicestershire District Council,31UH,Housing Repairs,HRA Housing Repairs & Maintenance,HRAHRM,Orbis Property Protection Ltd,A028149,27/12/2017,1356287,390,Void Property Clearance Services
North West Leicestershire District Council,31UH,Housing Repairs,HRA Housing Repairs & Maintenance,HRAHRM,Orbis Property Protection Ltd,A028149,27/12/2017,1356288,347,Void Property Clearance Services
North West Leicestershire District Council,31UH,Housing Repairs,HRA Housing Repairs & Maintenance,HRAHRM,Orbis Property Protection Ltd,A028149,27/12/2017,1356294,431,Void Property Clearance Services
North West Leicestershire District Council,31UH,Housing Repairs,HRA Housing Repairs & Maintenance,HRAHRM,Orbis Property Protection Ltd,A028149,27/12/2017,1356297,987,Void Property Clearance Services
North West Leicestershire District Council,31UH,Housing Repairs,HRA Housing Repairs & Maintenance,HRAHRM,H20 Utilities Ltd,A043865,27/12/2017,1356298,750,Associated Drainage Services
North West Leicestershire District Council,31UH,Information Technology,ICT Services,ICT,Firmstep,A030931,04/01/2018,1355560,7130,Computing
North West Leicestershire District Council,31UH,Information Technology,ICT Services,ICT,Firmstep,A030931,04/01/2018,1355953,-9300,Computing
